[Event "European Online Club-ch-B 2021"]
[Site "Online"]
[Date "2021.03.27"]
[Round "6.7"]
[White "Adrian, Leopold"]
[Black "Andriasyan, Siranush"]
[Result "0-1"]
[ECO "A18"]
[WhiteElo "2009"]
[BlackElo "2298"]
[Annotator "NA"]
[PlyCount "106"]
[EventDate "2021.03.27"]
[EventType "team-tourn"]
[EventCountry "NET"]
[SourceTitle "playchess.com"]
[Source "ChessBase"]
[SourceQuality "1"]
[TimeControl "900+5"]

1. c4 {[%emt 0:00:00]} Nf6 {[%emt 0:00:05]} 2. Nc3 {[%emt 0:00:03]} e6 {[%emt 0:00:06]} 3. e4 {[%emt 0:00:02]} d6 {[%emt 0:00:49]} 4. d4 {[%emt 0:00:10]} Be7 {[%emt 0:00:22]} 5. Nf3 {[%emt 0:00:10]} O-O {[%emt 0:00:15]} 6. Bd3 {[%emt 0:00:21]} Nbd7 {[%emt 0:01:42]} 7. e5 {[%emt 0:00:34]} dxe5 {[%emt 0:00:07]} 8. dxe5 {[%emt 0:00:02]} Nc5 {[%emt 0:00:59]} 9. Bc2 {[%emt 0:01:13]} Qxd1+ {[%emt 0:00:24]} 10. Nxd1 {[%emt 0:00:08]} Nfd7 {[%emt 0:01:30]} 11. O-O {[%emt 0:01:33]} a5 {[%emt 0:00:34]} 12. b3 {[%emt 0:01:10]} b6 {[%emt 0:00:29]} 13. Bb2 {[%emt 0:00:40]} Bb7 {[%emt 0:00:14]} 14. Re1 {[%emt 0:00:20]} Na6 {[%emt 0:01:52]} 15. a3 {[%emt 0:00:42]} Rfd8 {[%emt 0:00:24]} 16. Nc3 {[%emt 0:00:47]} Nf8 {[%emt 0:00:27]} 17. Rad1 {[%emt 0:00:52]} Ng6 {[%emt 0:00:14]} 18. Nd4 {[%emt 0:04:30]} Bc5 {[%emt 0:01:10]} 19. Ndb5 {[%emt 0:00:04]} Nf4 {[%emt 0:01:08]} 20. Ne4 {[%emt 0:00:47]} Be7 {[%emt 0:00:10]} 21. f3 {[%emt 0:00:33]} Bc6 {[%emt 0:00:38]} 22. g3 {[%emt 0:01:00]} Ng6 {[%emt 0:01:07]} 23. f4 {[%emt 0:00:04]} h5 {[%emt 0:00:21]} 24. Nd4 {[%emt 0:00:34]} Bb7 {[%emt 0:00:19]} 25. Kf2 {[%emt 0:00:01]} h4 {[%emt 0:00:12]} 26. Nf3 {[%emt 0:00:25]} Nc5 {[%emt 0:00:14]} 27. Neg5 {[%emt 0:00:16]} hxg3+ {[%emt 0:00:55]} 28. hxg3 {[%emt 0:00:02]} a4 {[%emt 0:00:18]} 29. b4 {[%emt 0:00:03]} Nb3 {[%emt 0:00:04]} 30. Bxg6 {[%emt 0:00:03]} fxg6 {[%emt 0:00:03]} 31. Nxe6 {[%emt 0:00:01]} Rxd1 {[%emt 0:00:05]} 32. Rxd1 {[%emt 0:00:02]} c5 {[%emt 0:00:09]} 33. Rd7 {[%emt 0:00:07]} Bxf3 {[%emt 0:00:05]} 34. Kxf3 {[%emt 0:00:01]} Kf7 {[%emt 0:00:05]} 35. Nc7 {[%emt 0:00:13]} Rd8 {[%emt 0:00:06]} 36. e6+ {[%emt 0:00:11]} Kf8 {[%emt 0:00:04]} 37. Nd5 {[%emt 0:00:03]} Rxd7 {[%emt 0:00:08]} 38. exd7 {[%emt 0:00:01]} Nd2+ {[%emt 0:00:02]} 39. Ke2 {[%emt 0:00:08]} Nxc4 {[%emt 0:00:02]} 40. Bxg7+ {[%emt 0:00:11]} Kf7 {[%emt 0:00:04]} 41. Be5 {[%emt 0:00:10]} Bd8 {[%emt 0:00:07]} 42. Bc7 {[%emt 0:00:05]} Bxc7 {[%emt 0:00:04]} 43. Nxc7 {[%emt 0:00:01]} Ke7 {[%emt 0:00:01]} 44. Nd5+ {[%emt 0:00:02]} Kxd7 {[%emt 0:00:02]} 45. Nxb6+ {[%emt 0:00:02]} Nxb6 {[%emt 0:00:03]} 46. bxc5 {[%emt 0:00:07]} Nc4 {[%emt 0:00:01]} 47. Kd3 {[%emt 0:00:07]} Nxa3 {[%emt 0:00:04]} 48. g4 {[%emt 0:00:09]} Nb5 {[%emt 0:00:07]} 49. Kc4 {[%emt 0:00:09]} a3 {[%emt 0:00:06]} 50. f5 {[%emt 0:00:04]} a2 {[%emt 0:00:04]} 51. Kxb5 {[%emt 0:00:07]} a1=Q {[%emt 0:00:04]} 52. c6+ {[%emt 0:00:01]} Kc7 {[%emt 0:00:03]} 53. fxg6 {[%emt 0:00:02]} Qb1+ {[%emt 0:00:02]} 0-1

[Event "European Online Club-ch-B 2021"]
[Site "Online"]
[Date "2021.03.27"]
[Round "6.8"]
[White "Pillard, Valentin"]
[Black "Venard, Paul-Andre"]
[Result "1/2-1/2"]
[ECO "B34"]
[WhiteElo "2103"]
[BlackElo "2048"]
[Annotator "NA"]
[PlyCount "64"]
[EventDate "2021.03.27"]
[EventType "team-tourn"]
[EventCountry "NET"]
[SourceTitle "playchess.com"]
[Source "ChessBase"]
[SourceQuality "1"]
[TimeControl "900+5"]

1. e4 {[%emt 0:00:34]} c5 {[%emt 0:00:05]} 2. Nf3 {[%emt 0:00:18]} g6 {[%emt 0:00:03]} 3. d4 {[%emt 0:00:26]} cxd4 {[%emt 0:00:03]} 4. Nxd4 {[%emt 0:00:01]} Bg7 {[%emt 0:00:03]} 5. Nc3 {[%emt 0:00:02]} Nc6 {[%emt 0:00:02]} 6. Nb3 {[%emt 0:00:02]} Nf6 {[%emt 0:00:26]} 7. Be2 {[%emt 0:00:03]} O-O {[%emt 0:00:03]} 8. O-O {[%emt 0:00:03]} a5 {[%emt 0:00:14]} 9. a4 {[%emt 0:00:05]} Nb4 {[%emt 0:00:09]} 10. Bg5 {[%emt 0:01:48]} d5 {[%emt 0:00:41]} 11. exd5 {[%emt 0:01:05]} Nfxd5 {[%emt 0:00:27]} 12. Nxd5 {[%emt 0:00:18]} Qxd5 {[%emt 0:00:23]} 13. Bxe7 {[%emt 0:00:25]} Re8 {[%emt 0:01:01]} 14. Bxb4 {[%emt 0:00:56]} Qxd1 {[%emt 0:00:04]} 15. Rfxd1 {[%emt 0:02:20]} axb4 {[%emt 0:00:05]} 16. Bb5 {[%emt 0:00:03]} Rf8 {[%emt 0:00:07]} 17. Nd4 {[%emt 0:00:44]} Rd8 {[%emt 0:01:06]} 18. c3 {[%emt 0:00:25]} Bd7 {[%emt 0:01:18]} 19. Bxd7 {[%emt 0:04:06]} Rxd7 {[%emt 0:00:04]} 20. g3 {[%emt 0:00:27]} Rad8 {[%emt 0:01:04]} 21. Rac1 {[%emt 0:00:49]} bxc3 {[%emt 0:00:59]} 22. bxc3 {[%emt 0:00:02]} Bxd4 {[%emt 0:00:03]} 23. cxd4 {[%emt 0:00:04]} Rxd4 {[%emt 0:00:03]} 24. Rxd4 {[%emt 0:00:03]} Rxd4 {[%emt 0:00:02]} 25. Rb1 {[%emt 0:00:18]} Rxa4 {[%emt 0:00:10]} 26. Rxb7 {[%emt 0:00:02]} h5 {[%emt 0:00:08]} 27. h4 {[%emt 0:00:05]} Kg7 {[%emt 0:00:06]} 28. Kg2 {[%emt 0:00:02]} Ra3 {[%emt 0:00:05]} 29. Rb6 {[%emt 0:00:14]} Rc3 {[%emt 0:00:03]} 30. Ra6 {[%emt 0:00:04]} Rb3 {[%emt 0:00:05]} 31. Rc6 {[%emt 0:00:02]} Ra3 {[%emt 0:00:02]} 32. Rb6 {[%emt 0:00:02]} Rc3 {[%emt 0:00:02]} 1/2-1/2

[Event "European Online Club-ch-B 2021"]
[Site "Online"]
[Date "2021.03.27"]
[Round "6.11"]
[White "Navara, David"]
[Black "Villegas, Pierre"]
[Result "1-0"]
[ECO "B12"]
[WhiteElo "2697"]
[BlackElo "2367"]
[Annotator "ChessBase"]
[PlyCount "75"]
[EventDate "2021.03.27"]
[EventType "team-tourn"]
[EventCountry "NET"]
[SourceTitle "playchess.com"]
[Source "ChessBase"]
[SourceQuality "1"]
[TimeControl "900+5"]

1. e4 {[%emt 0:00:00]} c6 {[%emt 0:00:04]} 2. d4 {[%emt 0:00:03]} d5 {[%emt 0:00:02]} 3. e5 {[%emt 0:00:02]} Bf5 {[%emt 0:00:03]} 4. Nf3 {[%emt 0:00:03]} e6 {[%emt 0:00:02]} 5. Be2 {[%emt 0:00:01]} Ne7 {[%emt 0:00:17]} 6. O-O {[%emt 0:00:03]} Nd7 {[%emt 0:00:06]} 7. Nbd2 {[%emt 0:00:13]} h6 {[%emt 0:00:03]} 8. Nb3 {[%emt 0:00:05]} Qc7 {[%emt 0:00:03]} 9. Bd2 {[%emt 0:00:24]} g5 {[%emt 0:00:25]} 10. a4 {[%emt 0:00:05]} a5 {[%emt 0:00:48]} 11. Ne1 {[%emt 0:00:19]} Bg7 {[%emt 0:01:07]} 12. f4 {[%emt 0:02:50]} gxf4 {[%emt 0:01:33]} 13. Nd3 {[%emt 0:00:05]} Ng6 {[%emt 0:02:21]} 14. Nxf4 {[%emt 0:00:36]} Nxf4 {[%emt 0:00:09]} 15. Rxf4 {[%emt 0:02:01]} Bg6 {[%emt 0:02:09]} 16. Bh5 {[%emt 0:01:09]} Nf8 {[%emt 0:03:37]} 17. Qf3 {[%emt 0:02:47]} Bxh5 {[%emt 0:00:23]} 18. Qxh5 {[%emt 0:00:00]} Ng6 {[%emt 0:00:02]} 19. Rf2 {[%emt 0:02:28]} b6 {[%emt 0:00:22]} 20. Raf1 {[%emt 0:00:04]} Ra7 {[%emt 0:01:01]} 21. Rxf7 {[%emt 0:00:28]} Qxf7 {[%emt 0:00:04]} 22. Rxf7 {[%emt 0:00:00]} Kxf7 {[%emt 0:00:02]} 23. Nc1 {[%emt 0:00:06]} Rg8 {[%emt 0:00:45]} 24. Nd3 {[%emt 0:01:39]} Bf8 {[%emt 0:00:22]} 25. Bxh6 {[%emt 0:00:26]} Bxh6 {[%emt 0:00:16]} 26. Qxh6 {[%emt 0:00:00]} Ke8 {[%emt 0:00:04]} 27. h4 {[%emt 0:00:56]} Rag7 {[%emt 0:00:40]} 28. h5 {[%emt 0:00:09]} Nf8 {[%emt 0:00:02]} 29. Nf4 {[%emt 0:00:02]} Kd7 {[%emt 0:00:11]} 30. Qf6 {[%emt 0:00:04]} Re7 {[%emt 0:00:10]} 31. h6 {[%emt 0:00:15]} Nh7 {[%emt 0:00:03]} 32. Qh4 {[%emt 0:00:01]} Rf7 {[%emt 0:00:08]} 33. Nh5 {[%emt 0:00:08]} Rg6 {[%emt 0:00:08]} 34. Ng7 {[%emt 0:00:07]} Ng5 {[%emt 0:00:06]} 35. Qh5 {[%emt 0:00:01]} Nf3+ {[%emt 0:00:07]} 36. Kh1 {[%emt 0:00:03]} Rf4 {[%emt 0:00:09]} 37. gxf3 {[%emt 0:00:10]} Rg3 {[%emt 0:00:02]} 38. Qe8+ {[%emt 0:00:02]} 1-0

[Event "European Online Club-ch-B 2021"]
[Site "Online"]
[Date "2021.03.27"]
[Round "6.12"]
[White "Meylan, Andre"]
[Black "Sasikiran, Krishnan"]
[Result "0-1"]
[ECO "B85"]
[WhiteElo "2205"]
[BlackElo "2647"]
[Annotator "ChessBase"]
[PlyCount "110"]
[EventDate "2021.03.27"]
[EventType "team-tourn"]
[EventCountry "NET"]
[SourceTitle "playchess.com"]
[Source "ChessBase"]
[SourceQuality "1"]
[TimeControl "900+5"]

1. e4 {[%emt 0:00:00]} c5 {[%emt 0:00:03]} 2. Nf3 {[%emt 0:00:02]} d6 {[%emt 0:00:01]} 3. d4 {[%emt 0:00:02]} cxd4 {[%emt 0:00:01]} 4. Nxd4 {[%emt 0:00:00]} Nf6 {[%emt 0:00:01]} 5. Nc3 {[%emt 0:00:01]} a6 {[%emt 0:00:01]} 6. a4 {[%emt 0:00:01]} e6 {[%emt 0:00:06]} 7. Be2 {[%emt 0:00:02]} Be7 {[%emt 0:00:02]} 8. O-O {[%emt 0:00:02]} Nc6 {[%emt 0:00:03]} 9. Be3 {[%emt 0:00:03]} O-O {[%emt 0:00:02]} 10. f4 {[%emt 0:00:03]} Qc7 {[%emt 0:00:02]} 11. Bf3 {[%emt 0:00:05]} Re8 {[%emt 0:00:04]} 12. Kh1 {[%emt 0:00:04]} Nd7 {[%emt 0:01:34]} 13. Qe2 {[%emt 0:01:49]} Nxd4 {[%emt 0:01:35]} 14. Bxd4 {[%emt 0:00:04]} b6 {[%emt 0:00:01]} 15. e5 {[%emt 0:01:56]} Bb7 {[%emt 0:00:14]} 16. Bxb7 {[%emt 0:00:44]} Qxb7 {[%emt 0:00:03]} 17. exd6 {[%emt 0:00:14]} Bxd6 {[%emt 0:00:05]} 18. Ne4 {[%emt 0:00:05]} Bf8 {[%emt 0:01:51]} 19. Rae1 {[%emt 0:01:11]} Qc6 {[%emt 0:01:23]} 20. b3 {[%emt 0:02:51]} b5 {[%emt 0:01:14]} 21. axb5 {[%emt 0:00:35]} axb5 {[%emt 0:00:03]} 22. Qh5 {[%emt 0:00:17]} h6 {[%emt 0:03:58]} 23. c3 {[%emt 0:00:03]} Qd5 {[%emt 0:00:43]} 24. Qxd5 {[%emt 0:00:55]} exd5 {[%emt 0:00:03]} 25. Ng3 {[%emt 0:00:42]} Nc5 {[%emt 0:01:29]} 26. Rxe8 {[%emt 0:01:57]} Rxe8 {[%emt 0:00:03]} 27. Rb1 {[%emt 0:00:08]} Ne6 {[%emt 0:00:57]} 28. Be3 {[%emt 0:00:20]} Bd6 {[%emt 0:00:39]} 29. f5 {[%emt 0:00:02]} Ng5 {[%emt 0:00:23]} 30. Bd4 {[%emt 0:00:14]} Ne4 {[%emt 0:00:22]} 31. Nxe4 {[%emt 0:00:45]} Rxe4 {[%emt 0:00:03]} 32. f6 {[%emt 0:00:32]} g5 {[%emt 0:00:14]} 33. Kg1 {[%emt 0:00:25]} Kh7 {[%emt 0:00:07]} 34. Ra1 {[%emt 0:00:14]} b4 {[%emt 0:00:03]} 35. h3 {[%emt 0:00:17]} bxc3 {[%emt 0:00:07]} 36. Bxc3 {[%emt 0:00:00]} Re3 {[%emt 0:00:03]} 37. Rc1 {[%emt 0:00:22]} Bg3 {[%emt 0:00:08]} 38. b4 {[%emt 0:00:07]} Rd3 {[%emt 0:00:02]} 39. b5 {[%emt 0:00:13]} Bf4 {[%emt 0:00:07]} 40. Rc2 {[%emt 0:00:06]} d4 {[%emt 0:00:01]} 41. Be1 {[%emt 0:00:23]} Rd1 {[%emt 0:00:03]} 42. Kf2 {[%emt 0:00:03]} d3 {[%emt 0:00:01]} 43. Rc8 {[%emt 0:00:31]} d2 {[%emt 0:00:03]} 44. Bxd2 {[%emt 0:00:01]} Rxd2+ {[%emt 0:00:02]} 45. Kf3 {[%emt 0:00:03]} Rb2 {[%emt 0:00:02]} 46. Rc5 {[%emt 0:00:04]} Kg6 {[%emt 0:00:03]} 47. g3 {[%emt 0:00:01]} Rb3+ {[%emt 0:00:02]} 48. Ke4 {[%emt 0:00:03]} Rxg3 {[%emt 0:00:03]} 49. h4 {[%emt 0:00:02]} Rb3 {[%emt 0:00:03]} 50. hxg5 {[%emt 0:00:05]} hxg5 {[%emt 0:00:02]} 51. Rd5 {[%emt 0:00:04]} Rb4+ {[%emt 0:00:03]} 52. Kf3 {[%emt 0:00:02]} Kxf6 {[%emt 0:00:10]} 53. Kg4 {[%emt 0:00:09]} Be5+ {[%emt 0:00:05]} 54. Kf3 {[%emt 0:00:02]} g4+ {[%emt 0:00:02]} 55. Ke3 {[%emt 0:00:04]} Ke6 {[%emt 0:00:02]} 0-1

[Event "European Online Club-ch-B 2021"]
[Site "Online"]
[Date "2021.03.27"]
[Round "6.13"]
[White "Grandelius, Nils"]
[Black "Gorodetzky, David"]
[Result "1/2-1/2"]
[ECO "B13"]
[WhiteElo "2663"]
[BlackElo "2495"]
[Annotator "ChessBase"]
[PlyCount "78"]
[EventDate "2021.03.27"]
[EventType "team-tourn"]
[EventCountry "NET"]
[SourceTitle "playchess.com"]
[Source "ChessBase"]
[SourceQuality "1"]
[TimeControl "900+5"]

1. e4 {[%emt 0:00:00]} c6 {[%emt 0:00:03]} 2. d4 {[%emt 0:00:03]} d5 {[%emt 0:00:01]} 3. exd5 {[%emt 0:00:09]} cxd5 {[%emt 0:00:02]} 4. Bd3 {[%emt 0:00:01]} Nf6 {[%emt 0:00:08]} 5. h3 {[%emt 0:00:02]} Nc6 {[%emt 0:00:12]} 6. Nf3 {[%emt 0:00:13]} g6 {[%emt 0:01:18]} 7. O-O {[%emt 0:00:10]} Bg7 {[%emt 0:00:02]} 8. c3 {[%emt 0:00:11]} Bf5 {[%emt 0:00:13]} 9. Be2 {[%emt 0:00:10]} O-O {[%emt 0:00:10]} 10. Bf4 {[%emt 0:00:12]} Ne4 {[%emt 0:00:28]} 11. Nbd2 {[%emt 0:00:13]} Nxd2 {[%emt 0:00:05]} 12. Qxd2 {[%emt 0:00:07]} Re8 {[%emt 0:00:22]} 13. Bh6 {[%emt 0:01:10]} Qd6 {[%emt 0:00:12]} 14. Rfe1 {[%emt 0:00:57]} a6 {[%emt 0:00:34]} 15. Rad1 {[%emt 0:00:20]} b5 {[%emt 0:00:35]} 16. Bxg7 {[%emt 0:02:30]} Kxg7 {[%emt 0:00:03]} 17. Ne5 {[%emt 0:00:01]} Rad8 {[%emt 0:01:06]} 18. Bg4 {[%emt 0:01:34]} Nxe5 {[%emt 0:01:50]} 19. Rxe5 {[%emt 0:00:00]} Bxg4 {[%emt 0:00:11]} 20. hxg4 {[%emt 0:00:00]} f6 {[%emt 0:00:01]} 21. Re3 {[%emt 0:00:04]} e5 {[%emt 0:00:59]} 22. dxe5 {[%emt 0:01:25]} Rxe5 {[%emt 0:00:03]} 23. g3 {[%emt 0:02:28]} Qe6 {[%emt 0:00:40]} 24. Rde1 {[%emt 0:00:25]} h6 {[%emt 0:01:49]} 25. Qd4 {[%emt 0:00:28]} Re8 {[%emt 0:00:15]} 26. a4 {[%emt 0:01:03]} Re4 {[%emt 0:00:30]} 27. axb5 {[%emt 0:00:42]} axb5 {[%emt 0:00:17]} 28. Qa7+ {[%emt 0:00:49]} Re7 {[%emt 0:00:49]} 29. Qc5 {[%emt 0:00:04]} g5 {[%emt 0:00:26]} 30. Rxe4 {[%emt 0:01:25]} dxe4 {[%emt 0:00:03]} 31. Re3 {[%emt 0:00:15]} Qd7 {[%emt 0:01:29]} 32. Qb4 {[%emt 0:00:13]} Re5 {[%emt 0:00:36]} 33. Rxe4 {[%emt 0:00:10]} Qd1+ {[%emt 0:00:03]} 34. Kh2 {[%emt 0:00:09]} Qf3 {[%emt 0:00:25]} 35. Rxe5 {[%emt 0:00:01]} Qxf2+ {[%emt 0:00:02]} 36. Kh3 {[%emt 0:00:05]} Qf1+ {[%emt 0:00:17]} 37. Kh2 {[%emt 0:00:01]} Qf2+ {[%emt 0:00:15]} 38. Kh3 {[%emt 0:00:01]} Qf1+ {[%emt 0:00:02]} 39. Kh2 {[%emt 0:00:02]} Qf2+ {[%emt 0:00:01]} 1/2-1/2

[Event "European Online Club-ch-B 2021"]
[Site "Online"]
[Date "2021.03.27"]
[Round "6.14"]
[White "Parkhov, Yair"]
[Black "Svane, Rasmus"]
[Result "1/2-1/2"]
[ECO "B11"]
[WhiteElo "2407"]
[BlackElo "2613"]
[Annotator "ChessBase"]
[PlyCount "163"]
[EventDate "2021.03.27"]
[EventType "team-tourn"]
[EventCountry "NET"]
[SourceTitle "playchess.com"]
[Source "ChessBase"]
[SourceQuality "1"]
[TimeControl "900+5"]

1. e4 {[%emt 0:00:00]} c6 {[%emt 0:00:06]} 2. Nf3 {[%emt 0:00:03]} d5 {[%emt 0:00:03]} 3. Nc3 {[%emt 0:00:01]} dxe4 {[%emt 0:00:01]} 4. Nxe4 {[%emt 0:00:00]} Nf6 {[%emt 0:00:01]} 5. Qe2 {[%emt 0:00:02]} Nxe4 {[%emt 0:00:02]} 6. Qxe4 {[%emt 0:00:00]} Qa5 {[%emt 0:00:01]} 7. b4 {[%emt 0:00:02]} Qf5 {[%emt 0:00:25]} 8. Qc4 {[%emt 0:04:28]} Qe6+ {[%emt 0:00:52]} 9. Be2 {[%emt 0:01:27]} Qxc4 {[%emt 0:00:14]} 10. Bxc4 {[%emt 0:00:00]} Bf5 {[%emt 0:00:01]} 11. d3 {[%emt 0:00:41]} e6 {[%emt 0:00:16]} 12. Bd2 {[%emt 0:00:53]} Nd7 {[%emt 0:00:24]} 13. a4 {[%emt 0:00:31]} Bg4 {[%emt 0:00:25]} 14. Ng5 {[%emt 0:00:57]} Be7 {[%emt 0:00:59]} 15. Ne4 {[%emt 0:01:05]} Bf5 {[%emt 0:00:31]} 16. O-O {[%emt 0:01:06]} O-O {[%emt 0:00:21]} 17. Ng3 {[%emt 0:00:11]} Bg6 {[%emt 0:00:25]} 18. f4 {[%emt 0:00:32]} Nb6 {[%emt 0:00:48]} 19. Bb3 {[%emt 0:00:03]} Nd5 {[%emt 0:00:38]} 20. b5 {[%emt 0:00:08]} Rfe8 {[%emt 0:01:04]} 21. Rae1 {[%emt 0:00:40]} h5 {[%emt 0:01:15]} 22. bxc6 {[%emt 0:00:47]} Bc5+ {[%emt 0:00:18]} 23. Kh1 {[%emt 0:00:04]} bxc6 {[%emt 0:00:02]} 24. Ne4 {[%emt 0:00:16]} Be7 {[%emt 0:00:39]} 25. a5 {[%emt 0:00:13]} Rab8 {[%emt 0:00:33]} 26. Ba4 {[%emt 0:00:18]} Rec8 {[%emt 0:00:02]} 27. Rb1 {[%emt 0:00:06]} Nb4 {[%emt 0:00:35]} 28. Rb3 {[%emt 0:00:31]} c5 {[%emt 0:00:38]} 29. Rbb1 {[%emt 0:02:09]} c4 {[%emt 0:00:21]} 30. Nf2 {[%emt 0:00:07]} cxd3 {[%emt 0:00:11]} 31. cxd3 {[%emt 0:00:04]} Nxd3 {[%emt 0:00:17]} 32. Nxd3 {[%emt 0:00:05]} Bxd3 {[%emt 0:00:15]} 33. Rxb8 {[%emt 0:00:02]} Rxb8 {[%emt 0:00:00]} 34. Rc1 {[%emt 0:00:04]} Rb2 {[%emt 0:00:57]} 35. Be3 {[%emt 0:00:08]} Be4 {[%emt 0:00:07]} 36. Bc6 {[%emt 0:00:08]} Bxc6 {[%emt 0:01:38]} 37. Rxc6 {[%emt 0:00:02]} Rb1+ {[%emt 0:00:01]} 38. Bg1 {[%emt 0:00:01]} Bf6 {[%emt 0:00:40]} 39. Rc4 {[%emt 0:00:06]} Ra1 {[%emt 0:01:11]} 40. g3 {[%emt 0:00:10]} Rxa5 {[%emt 0:00:05]} 41. Rc8+ {[%emt 0:00:02]} Kh7 {[%emt 0:00:01]} 42. Rc7 {[%emt 0:00:01]} Ra1 {[%emt 0:00:08]} 43. Kg2 {[%emt 0:00:04]} a5 {[%emt 0:00:03]} 44. Rxf7 {[%emt 0:00:04]} a4 {[%emt 0:00:05]} 45. Bc5 {[%emt 0:00:09]} Rc1 {[%emt 0:00:36]} 46. Bd6 {[%emt 0:00:07]} Rc6 {[%emt 0:00:08]} 47. Ba3 {[%emt 0:00:07]} Rc3 {[%emt 0:00:09]} 48. Bd6 {[%emt 0:00:02]} Rc6 {[%emt 0:00:14]} 49. Ba3 {[%emt 0:00:02]} Rc2+ {[%emt 0:00:06]} 50. Kh3 {[%emt 0:00:07]} Bd4 {[%emt 0:00:05]} 51. Re7 {[%emt 0:00:12]} Ra2 {[%emt 0:00:07]} 52. Bd6 {[%emt 0:00:04]} Bg1 {[%emt 0:00:03]} 53. Kh4 {[%emt 0:00:02]} Rxh2+ {[%emt 0:00:01]} 54. Kg5 {[%emt 0:00:01]} Bd4 {[%emt 0:00:11]} 55. Rxe6 {[%emt 0:00:07]} Bf6+ {[%emt 0:00:03]} 56. Kf5 {[%emt 0:00:03]} Rh3 {[%emt 0:00:07]} 57. g4 {[%emt 0:00:07]} hxg4 {[%emt 0:00:05]} 58. Kxg4 {[%emt 0:00:01]} Rd3 {[%emt 0:00:03]} 59. Be5 {[%emt 0:00:07]} Bxe5 {[%emt 0:00:11]} 60. Rxe5 {[%emt 0:00:02]} a3 {[%emt 0:00:03]} 61. Ra5 {[%emt 0:00:02]} Rb3 {[%emt 0:00:02]} 62. f5 {[%emt 0:00:07]} Kg8 {[%emt 0:00:06]} 63. Ra7 {[%emt 0:00:03]} Kf8 {[%emt 0:00:06]} 64. Kg5 {[%emt 0:00:03]} Rg3+ {[%emt 0:00:02]} 65. Kf4 {[%emt 0:00:01]} Rc3 {[%emt 0:00:03]} 66. Kg5 {[%emt 0:00:04]} Rg3+ {[%emt 0:00:08]} 67. Kf4 {[%emt 0:00:01]} Rb3 {[%emt 0:00:02]} 68. Kg5 {[%emt 0:00:02]} Ke8 {[%emt 0:00:05]} 69. Kf4 {[%emt 0:00:21]} Kd8 {[%emt 0:00:13]} 70. Rxg7 {[%emt 0:00:09]} Rb4+ {[%emt 0:00:02]} 71. Ke5 {[%emt 0:00:02]} Ra4 {[%emt 0:00:01]} 72. Rg1 {[%emt 0:00:03]} a2 {[%emt 0:00:02]} 73. Ra1 {[%emt 0:00:02]} Ke7 {[%emt 0:00:02]} 74. Kd5 {[%emt 0:00:06]} Kf6 {[%emt 0:00:02]} 75. Kc5 {[%emt 0:00:02]} Kxf5 {[%emt 0:00:02]} 76. Kb5 {[%emt 0:00:01]} Ra8 {[%emt 0:00:01]} 77. Kb4 {[%emt 0:00:01]} Ke4 {[%emt 0:00:01]} 78. Kb3 {[%emt 0:00:22]} Kd3 {[%emt 0:00:02]} 79. Rxa2 {[%emt 0:00:06]} Rb8+ {[%emt 0:00:01]} 80. Ka4 {[%emt 0:00:01]} Ra8+ {[%emt 0:00:03]} 81. Kb3 {[%emt 0:00:02]} Rxa2 {[%emt 0:00:01]} 82. Kxa2 {[%emt 0:00:02]} 1/2-1/2

[Event "European Online Club-ch-B 2021"]
[Site "Online"]
[Date "2021.03.27"]
[Round "6.15"]
[White "Hansen, Sune Berg"]
[Black "Veinberg, Nimrod"]
[Result "1/2-1/2"]
[ECO "C54"]
[WhiteElo "2533"]
[BlackElo "2404"]
[Annotator "ChessBase"]
[PlyCount "78"]
[EventDate "2021.03.27"]
[EventType "team-tourn"]
[EventCountry "NET"]
[SourceTitle "playchess.com"]
[Source "ChessBase"]
[SourceQuality "1"]
[TimeControl "900+5"]

1. e4 {[%emt 0:00:00]} e5 {[%emt 0:00:02]} 2. Nf3 {[%emt 0:00:03]} Nc6 {[%emt 0:00:01]} 3. Bc4 {[%emt 0:00:01]} Bc5 {[%emt 0:00:02]} 4. c3 {[%emt 0:00:02]} Nf6 {[%emt 0:00:01]} 5. d3 {[%emt 0:00:02]} d6 {[%emt 0:00:03]} 6. O-O {[%emt 0:00:03]} h6 {[%emt 0:00:01]} 7. Re1 {[%emt 0:00:04]} O-O {[%emt 0:00:03]} 8. Nbd2 {[%emt 0:00:10]} a5 {[%emt 0:00:02]} 9. Nf1 {[%emt 0:00:05]} a4 {[%emt 0:00:12]} 10. Ng3 {[%emt 0:01:01]} Ra5 {[%emt 0:00:54]} 11. a3 {[%emt 0:00:10]} Be6 {[%emt 0:00:25]} 12. Bxe6 {[%emt 0:00:48]} fxe6 {[%emt 0:00:00]} 13. d4 {[%emt 0:00:02]} Bb6 {[%emt 0:00:24]} 14. h3 {[%emt 0:00:19]} Qe8 {[%emt 0:00:09]} 15. Be3 {[%emt 0:00:05]} Qg6 {[%emt 0:02:07]} 16. dxe5 {[%emt 0:00:53]} Bxe3 {[%emt 0:00:05]} 17. Rxe3 {[%emt 0:00:17]} Nxe5 {[%emt 0:00:11]} 18. Nxe5 {[%emt 0:00:27]} Rxe5 {[%emt 0:00:00]} 19. Qxa4 {[%emt 0:00:36]} Nd5 {[%emt 0:00:04]} 20. exd5 {[%emt 0:04:44]} Rxe3 {[%emt 0:00:00]} 21. fxe3 {[%emt 0:00:01]} Qxg3 {[%emt 0:00:02]} 22. Qe4 {[%emt 0:00:05]} Qf2+ {[%emt 0:01:02]} 23. Kh2 {[%emt 0:00:03]} e5 {[%emt 0:00:02]} 24. Rb1 {[%emt 0:00:29]} Qd2 {[%emt 0:00:30]} 25. c4 {[%emt 0:00:58]} Rf2 {[%emt 0:00:03]} 26. Rg1 {[%emt 0:00:34]} Qxb2 {[%emt 0:00:07]} 27. a4 {[%emt 0:00:32]} b6 {[%emt 0:00:53]} 28. Qg4 {[%emt 0:00:35]} Rf7 {[%emt 0:01:12]} 29. Qe6 {[%emt 0:00:19]} Qf2 {[%emt 0:00:44]} 30. c5 {[%emt 0:01:24]} bxc5 {[%emt 0:01:41]} 31. a5 {[%emt 0:00:25]} Kh7 {[%emt 0:01:03]} 32. Qc8 {[%emt 0:00:44]} Qa2 {[%emt 0:00:36]} 33. a6 {[%emt 0:00:15]} Rf2 {[%emt 0:00:08]} 34. Kh1 {[%emt 0:00:16]} Qxd5 {[%emt 0:00:50]} 35. a7 {[%emt 0:00:25]} Ra2 {[%emt 0:00:02]} 36. Qf5+ {[%emt 0:00:13]} Kh8 {[%emt 0:00:04]} 37. Qc8+ {[%emt 0:00:04]} Kh7 {[%emt 0:01:22]} 38. Qf5+ {[%emt 0:00:05]} Kh8 {[%emt 0:00:09]} 39. Qc8+ {[%emt 0:00:02]} Kh7 {[%emt 0:00:57]} 1/2-1/2